bitfinex/quotes_BTCUSD_20240731
["timestamp","ask_amount","ask_price","bid_price","bid_amount"]
[1722459301131,2.29607055,64737.0,64736.0,0.00083]
[1722459301367,2.42360013,64737.0,64736.0,0.00183]
[1722459301606,2.5479421,64737.0,64736.0,0.00104312]
[1722459301833,2.92971317,64737.0,64736.0,0.00104312]
[1722459302068,2.92971317,64737.0,64736.0,4.312e-05]
[1722459302069,2.92171317,64737.0,64736.0,4.312e-05]
[1722459302317,2.09756085,64737.0,64736.0,0.00104312]
[1722459302553,2.10756085,64737.0,64736.0,0.00104312]
[1722459302782,1.91930889,64737.0,64736.0,0.00104312]
[1722459303039,2.10456392,64737.0,64736.0,0.00104312]
[1722459303336,1.79613948,64737.0,64736.0,0.00104312]
[1722459303561,1.41160971,64737.0,64736.0,4.312e-05]
[1722459303797,0.77726276,64737.0,64736.0,4.312e-05]
[1722459304024,0.39837338,64737.0,64736.0,0.00104312]
[1722459304252,0.68308543,64737.0,64736.0,0.00104312]
[1722459304517,0.66908543,64737.0,64736.0,0.00104312]
[1722459305054,0.97002743,64737.0,64736.0,4.312e-05]
[1722459305327,1.83550332,64737.0,64736.0,4.312e-05]
[1722459305630,2.03392559,64737.0,64736.0,0.00104312]
[1722459305843,2.04792559,64737.0,64736.0,0.00104312]
[1722459306093,2.0791192,64737.0,64736.0,0.00104312]
[1722459306369,1.63456132,64737.0,64736.0,0.00104312]
[1722459306640,1.64656132,64737.0,64736.0,0.00104312]
[1722459306844,1.4890096,64737.0,64736.0,4.312e-05]
[1722459307051,0.74682116,64737.0,64736.0,0.00104312]
[1722459307258,0.06707243,64737.0,64736.0,0.00104312]
[1722459307504,0.166471,64737.0,64736.0,4.312e-05]
[1722459308032,0.790355,64737.0,64736.0,0.00104312]
[1722459308571,0.84085006,64737.0,64736.0,0.00104312]
[1722459309068,0.8407837,64737.0,64736.0,0.00104312]
[1722459310281,1.1497257,64737.0,64736.0,0.00104312]
[1722459310552,1.29927742,64737.0,64736.0,0.00104312]
[1722459310788,1.95368009,64737.0,64736.0,0.00104312]
[1722459311028,1.87755578,64737.0,64736.0,0.00104312]
[1722459311230,1.98918595,64737.0,64736.0,0.00104312]
[1722459311673,2.37371803,64737.0,64736.0,0.00104312]
[1722459311922,2.40617169,64737.0,64736.0,0.00059725]
[1722459312411,2.40617169,64737.0,64731.0,0.00869]
[1722459312412,2.088513,64732.0,64731.0,0.00869]
[1722459312651,2.59818422,64732.0,64731.0,0.00869]
[1722459312892,2.62241893,64732.0,64731.0,0.00869]
[1722459313386,2.62241893,64732.0,64712.0,0.00869]
[1722459313387,0.347306,64722.0,64712.0,0.00869]
[1722459313630,2.29561437,64722.0,64712.0,0.00869]
[1722459313862,2.67805607,64722.0,64712.0,0.00869]
[1722459314138,2.67804246,64722.0,64712.0,0.00869]
[1722459314396,1.420752,64713.0,64712.0,0.00869]
[1722459314617,0.339095,64705.0,64704.0,0.00869]
[1722459314827,2.14539846,64705.0,64704.0,0.00869]
[1722459315030,2.45449346,64705.0,64704.0,0.00869]
[1722459315249,2.73039346,64705.0,64704.0,0.00869]
[1722459315502,1.274646,64704.0,64703.0,1e-08]
[1722459315748,0.327361,64699.0,64679.0,0.0087]
[1722459316056,1.8042594,64699.0,64679.0,0.0087]
[1722459316273,2.17813552,64699.0,64679.0,0.0087]
[1722459316516,1.79195784,64699.0,64679.0,0.0087]
[1722459316750,1.77516427,64699.0,64679.0,0.0087]
[1722459316984,1.73145078,64699.0,64679.0,0.0087]
[1722459317247,1.77516427,64699.0,64679.0,0.0087]
[1722459317455,1.23417606,64699.0,64698.0,0.00183]
[1722459317659,1.22017606,64699.0,64698.0,0.00183]
[1722459317882,1.67394252,64699.0,64698.0,0.00083]
[1722459318359,1.1152678,64699.0,64698.0,0.00083]
[1722459318603,1.1152678,64699.0,64698.0,0.06443]
[1722459318604,0.03824606,64699.0,64698.0,0.06443]
[1722459318811,0.03824606,64699.0,64698.0,0.21707242]
[1722459319248,0.014,64699.0,64698.0,0.21398172]
[1722459319457,0.028,64699.0,64698.0,0.21498172]
[1722459319699,0.491684,64699.0,64698.0,0.00183]
[1722459319906,1.09593,64699.0,64698.0,0.00183]
[1722459320107,1.56860472,64699.0,64698.0,0.00183]
[1722459320308,1.419053,64699.0,64698.0,0.00183]
[1722459320569,1.09593,64699.0,64698.0,0.00183]
[1722459320834,1.24548172,64699.0,64698.0,0.00183]
[1722459321071,1.09593,64699.0,64698.0,0.00183]
[1722459321318,1.54060472,64699.0,64698.0,0.00083]
[1722459321566,1.67460472,64699.0,64698.0,0.00083]
[1722459321808,2.3480278,64699.0,64698.0,0.00083]
[1722459322050,2.34802967,64699.0,64698.0,0.00083]
[1722459322299,2.28262772,64699.0,64698.0,0.00083]
[1722459322560,1.082098,64689.0,64688.0,0.00222]
[1722459322801,1.391269,64689.0,64688.0,0.00222]
[1722459323056,1.082098,64689.0,64688.0,0.00222]
[1722459324002,1.10634528,64689.0,64688.0,0.00222]
[1722459324254,1.12034528,64689.0,64688.0,0.00322]
[1722459324496,1.42951628,64689.0,64688.0,0.00322]
[1722459324755,1.58281628,64689.0,64688.0,0.00322]
[1722459324988,1.25964528,64689.0,64688.0,0.00322]
[1722459325229,1.249398,64689.0,64688.0,0.00322]
[1722459325483,1.082098,64689.0,64688.0,0.00222]
[1722459325971,1.096098,64689.0,64688.0,0.00222]
[1722459326439,1.096098,64689.0,64685.0,0.0087]
[1722459326440,0.154592,64686.0,64685.0,0.0087]
[1722459326655,0.463777,64686.0,64685.0,0.0087]
[1722459326868,0.772962,64686.0,64685.0,0.0087]
[1722459327071,1.082147,64686.0,64685.0,0.0087]
[1722459327752,1.64088372,64686.0,64685.0,0.0087]
[1722459327983,1.65488372,64686.0,64685.0,0.0087]
[1722459328477,1.64088372,64686.0,64685.0,0.0087]
[1722459328688,1.67913298,64686.0,64685.0,0.0087]
[1722459328900,1.76843298,64686.0,64685.0,0.0087]
[1722459329344,1.75443298,64686.0,64685.0,0.0087]
[1722459329555,1.76843298,64686.0,64685.0,0.0087]
[1722459329764,1.210147,64686.0,64685.0,0.0087]
[1722459330218,1.110147,64686.0,64685.0,0.0087]
[1722459330702,0.337185,64686.0,64680.0,0.0114]
[1722459330942,0.028,64686.0,64685.0,0.07476412]
[1722459331194,0.028,64686.0,64685.0,0.10022699]
[1722459331446,0.477777,64686.0,64685.0,0.10022699]
[1722459331682,0.00923866,64702.0,64685.0,0.10022699]
[1722459331932,0.028,64686.0,64685.0,0.10022699]
[1722459332415,0.014,64686.0,64685.0,0.10022699]
[1722459332652,0.014,64686.0,64685.0,0.24977871]
[1722459332884,0.022,64686.0,64685.0,0.24977871]
[1722459333105,0.046245,64686.0,64685.0,0.24977871]
[1722459333340,0.038245,64686.0,64685.0,0.24977871]
[1722459333618,0.040245,64686.0,64685.0,0.24977871]
[1722459333854,0.026245,64686.0,64685.0,0.17501459]
[1722459334073,0.465777,64686.0,64685.0,0.02546287]
[1722459334278,0.154604,64681.0,64680.0,0.0114]
[1722459334491,0.463813,64681.0,64680.0,0.0114]
[1722459334693,0.773022,64681.0,64680.0,0.0114]
[1722459335504,1.083231,64681.0,64680.0,0.0134]
[1722459335679,1.08169784,64681.0,64680.0,0.0134]
[1722459335883,1.08169784,64681.0,64680.0,0.0154]
[1722459336552,1.08169784,64681.0,64680.0,0.0134]
[1722459336753,1.08069784,64681.0,64680.0,0.0114]
[1722459336956,1.09069784,64681.0,64680.0,0.0114]
[1722459337083,1.09769784,64681.0,64680.0,0.0114]
[1722459337290,1.12194721,64681.0,64680.0,0.0114]
[1722459337537,1.09769784,64681.0,64680.0,0.0114]
[1722459337890,1.08069784,64681.0,64680.0,0.0114]
[1722459338135,1.09069784,64681.0,64680.0,0.0114]
[1722459338475,1.10369784,64681.0,64680.0,0.0114]
[1722459338693,1.41290684,64681.0,64680.0,0.0114]
[1722459339208,1.55470684,64681.0,64680.0,0.0114]
[1722459339415,1.55470684,64681.0,64680.0,0.0129542]
[1722459339416,1.65470684,64681.0,64680.0,0.0129542]
[1722459339653,1.80425856,64681.0,64680.0,0.0114]
[1722459339872,1.80425856,64681.0,64679.0,0.0087]
[1722459339873,1.391463,64680.0,64679.0,0.0041]
[1722459340105,1.64101472,64680.0,64679.0,0.0041]
[1722459340328,1.70659939,64680.0,64679.0,0.0041]
[1722459340560,2.04307529,64680.0,64679.0,0.0041]
[1722459340781,2.09032673,64680.0,64679.0,0.0041]
[1722459341219,2.09407529,64680.0,64679.0,0.0041]
[1722459341489,2.23797529,64680.0,64679.0,0.0041]
[1722459341929,2.55018929,64680.0,64679.0,0.0041]
[1722459342153,2.034509,64675.0,64674.0,0.21160502]
[1722459342388,2.95204529,64675.0,64674.0,0.14259271]
[1722459342613,2.97565387,64675.0,64674.0,0.14259271]
[1722459342827,3.89823117,64675.0,64674.0,0.14259271]
[1722459343038,2.040294,64667.0,64657.0,0.02660702]
[1722459343261,2.79313897,64667.0,64657.0,0.02660702]
[1722459343477,2.51723897,64667.0,64657.0,0.02660702]
[1722459343796,2.49723897,64667.0,64657.0,0.02660702]
[1722459343921,1.701073,64665.0,64664.0,0.00451]
[1722459344148,2.02681797,64665.0,64664.0,0.00451]
[1722459344390,2.14761797,64665.0,64664.0,0.00451]
[1722459344587,2.12761797,64665.0,64664.0,0.00451]
[1722459344959,0.01,64649.0,64630.0,0.01214422]
[1722459345106,0.154696,64643.0,64631.0,0.14955172]
[1722459345320,0.01,64646.0,64632.0,0.45167851]
[1722459345517,0.01,64646.0,64633.0,0.14955172]
[1722459345518,0.154691,64645.0,64633.0,0.14955172]
[1722459345721,0.319364,64649.0,64634.0,0.00309367]
[1722459345931,0.01,64649.0,64635.0,0.14955172]
[1722459346129,0.309328,64657.0,64637.0,0.2759]
[1722459346130,0.01,64652.0,64637.0,0.2759]
[1722459346350,0.01,64648.0,64638.0,0.13955172]
[1722459346579,0.01,64644.0,64638.0,0.13955172]
[1722459346787,0.164691,64645.0,64638.0,0.13955172]
[1722459347001,0.01,64644.0,64638.0,0.13955172]
[1722459347207,0.005,64649.0,64639.0,0.00309365]
[1722459347377,0.01,64652.0,64640.0,0.14955172]
[1722459347589,0.01,64651.0,64641.0,0.00309336]
[1722459347791,0.311335,64655.0,64634.0,0.1]
[1722459347792,0.01,64646.0,64642.0,0.14955172]
[1722459348000,0.01,64640.0,64639.0,0.0613]
[1722459348195,0.309372,64647.0,64639.0,0.21085172]
[1722459348196,0.154699,64642.0,64639.0,0.21085172]
[1722459348400,0.01,64642.0,64640.0,0.14955172]
[1722459348833,0.01,64641.0,64640.0,0.14955172]
[1722459349523,0.154698,64642.0,64640.0,0.14955172]
[1722459349524,0.01,64642.0,64640.0,0.14955172]
[1722459349747,0.03426115,64641.0,64640.0,0.14955172]
[1722459350178,0.01,64644.0,64639.0,0.0613]
[1722459350387,0.164702,64640.0,64639.0,0.0613]
[1722459350590,0.474152,64634.0,64633.0,0.0634]
[1722459350801,0.164718,64634.0,64633.0,0.0634]
[1722459351009,0.01,64634.0,64633.0,0.0634]
[1722459351302,0.474151,64634.0,64633.0,0.0634]
[1722459351481,0.01,64634.0,64633.0,0.0634]
[1722459351682,0.154706,64639.0,64633.0,0.21295172]
[1722459351893,0.07476412,64634.0,64630.0,0.00292119]
[1722459352110,0.01,64638.0,64630.0,0.15556728]
[1722459352345,0.011,64640.0,64631.0,0.14955172]
[1722459352617,0.001,64640.0,64633.0,0.001]
[1722459352868,0.154705,64639.0,64634.0,0.1526457]
[1722459353097,0.001,64640.0,64634.0,0.1526457]
[1722459353333,0.02426324,64638.0,64634.0,0.1526457]
[1722459353796,0.15469,64646.0,64634.0,0.1526457]
[1722459354032,0.01,64647.0,64635.0,0.0604]
[1722459354269,0.00328137,64651.0,64636.0,0.1526453]
[1722459354270,0.006,64638.0,64636.0,0.1526453]
[1722459354496,0.006,64638.0,64636.0,0.14955172]
[1722459354723,0.154696,64643.0,64636.0,0.14955172]
[1722459354962,0.001,64638.0,64636.0,0.14955172]
[1722459355448,0.154698,64642.0,64636.0,0.14955172]
[1722459355449,0.01,64641.0,64636.0,0.14955172]
[1722459355681,0.01,64643.0,64636.0,0.14955172]
[1722459355896,0.01,64642.0,64636.0,0.14955172]
[1722459356066,0.01,64643.0,64636.0,0.14955172]
[1722459356281,0.154698,64642.0,64636.0,0.15055172]
[1722459356446,0.164696,64643.0,64636.0,0.15055172]
[1722459357227,0.07476412,64639.0,64636.0,0.001]
[1722459357423,0.01,64644.0,64637.0,0.14955172]
[1722459357632,0.01,64642.0,64638.0,0.00309383]
[1722459357926,0.01,64642.0,64637.0,0.14955172]
[1722459357927,0.02426201,64639.0,64637.0,0.14955172]
[1722459358355,0.001,64643.0,64637.0,0.14955172]
[1722459358563,0.001,64643.0,64638.0,0.00309386]
[1722459358765,0.001,64643.0,64639.0,0.14955172]
[1722459359046,0.001,64643.0,64640.0,0.00309359]
[1722459359282,0.001,64643.0,64641.0,0.14955172]
[1722459359508,0.001,64643.0,64642.0,0.00309354]
[1722459359722,0.001,64643.0,64642.0,0.14955172]
[1722459360354,0.01,64652.0,64642.0,0.23805172]
[1722459360607,0.01,64651.0,64643.0,0.14955172]
[1722459360818,0.01,64649.0,64643.0,0.14955172]
[1722459361030,0.01,64651.0,64643.0,0.14955172]
[1722459361237,0.01,64655.0,64644.0,0.00309335]
[1722459361452,0.01,64669.0,64653.0,0.154671]
[1722459361656,0.44858472,64669.0,64654.0,0.21614443]
[1722459361878,0.01,64669.0,64655.0,0.0235]
[1722459362081,0.0242535,64666.0,64656.0,0.14955172]
[1722459362285,0.01,64666.0,64656.0,0.14955172]
[1722459362499,0.01,64664.0,64656.0,0.14955172]
[1722459362700,0.08476412,64663.0,64656.0,0.14955172]
[1722459362908,0.01,64662.0,64656.0,0.14955172]
[1722459363312,0.08476412,64663.0,64656.0,0.14955172]
[1722459363920,0.01,64669.0,64657.0,0.0030928]
[1722459364126,0.01,64665.0,64658.0,0.14955172]
[1722459364335,0.009,64666.0,64658.0,0.14955172]
[1722459364536,0.019,64666.0,64659.0,0.00309261]
[1722459364741,0.01,64666.0,64660.0,0.14955172]
[1722459364949,0.014,64663.0,64660.0,0.14955172]
[1722459365363,0.01,64659.0,64655.0,0.0235]
[1722459365566,0.03425317,64665.0,64656.0,0.14955172]
[1722459365781,0.02425317,64665.0,64656.0,0.15264466]
[1722459366146,0.02425317,64665.0,64659.0,0.16955172]
[1722459366361,0.02425317,64665.0,64660.0,0.023]
[1722459366711,0.07476412,64663.0,64661.0,0.14955172]
[1722459367170,0.01,64673.0,64662.0,0.00309267]
[1722459367414,0.309165,64691.0,64662.0,0.00309267]
[1722459367415,0.001,64665.0,64664.0,0.216945]
[1722459367651,0.0002,64679.0,64675.0,0.1]
[1722459367893,0.0002,64679.0,64676.0,0.0858]
[1722459368143,0.0102,64679.0,64676.0,0.0623]
[1722459368371,0.0002,64679.0,64677.0,0.14955172]
[1722459368632,0.07476412,64678.0,64677.0,0.14955172]
[1722459369344,0.0052,64679.0,64677.0,0.14955172]
[1722459369493,0.0052,64679.0,64678.0,0.00309167]
[1722459369698,0.0052,64679.0,64678.0,0.15264339]
[1722459370181,0.0052,64679.0,64677.0,0.004]
[1722459370182,0.0152,64679.0,64677.0,0.004]
[1722459370405,0.01,64676.0,64668.0,0.0614]
[1722459370634,0.01,64677.0,64671.0,0.00309221]
[1722459370849,0.07476412,64678.0,64662.0,0.0614]
[1722459370850,0.01,64671.0,64662.0,0.0614]
[1722459371067,0.07476412,64671.0,64666.0,0.14955172]
[1722459371505,0.0022,64679.0,64666.0,0.14955172]
[1722459371506,0.0122,64679.0,64666.0,0.14955172]
[1722459371753,0.08696412,64679.0,64666.0,0.14955172]
[1722459371987,0.0022,64679.0,64669.0,0.44545172]
[1722459372223,0.0022,64679.0,64672.0,0.0646]
[1722459372447,0.0022,64679.0,64673.0,0.14955172]
[1722459372667,0.0002,64679.0,64673.0,0.14955172]
[1722459372884,0.002,64677.0,64674.0,0.00309165]
[1722459373095,0.002,64677.0,64675.0,0.14955172]
[1722459373324,0.002,64677.0,64676.0,0.43766772]
[1722459373531,0.02624631,64677.0,64676.0,0.33805172]
[1722459373710,0.0042,64679.0,64676.0,0.33805172]
[1722459374149,0.0052,64679.0,64676.0,0.33805172]
[1722459374348,0.0052,64679.0,64676.0,0.21455172]
[1722459374349,0.07476412,64678.0,64676.0,0.21455172]
[1722459374605,0.001,64677.0,64676.0,0.21455172]
[1722459375014,0.07476412,64678.0,64676.0,0.21455172]
[1722459375659,0.07476412,64678.0,64668.0,0.0643]
[1722459375660,0.01,64670.0,64668.0,0.0643]
[1722459375866,0.07476412,64670.0,64669.0,0.14955172]
[1722459377126,0.02524958,64670.0,64669.0,0.15655172]
[1722459377354,0.02424958,64670.0,64669.0,0.14955172]
[1722459377555,0.80740458,64670.0,64669.0,0.14955172]
[1722459377759,0.03524958,64670.0,64669.0,0.15555172]
[1722459377967,0.42231158,64670.0,64669.0,0.006]
[1722459378169,0.95190458,64670.0,64669.0,0.006]
[1722459378375,1.236917,64670.0,64669.0,0.006]
[1722459378548,1.236917,64670.0,64669.0,0.009]
[1722459378986,1.236917,64670.0,64654.0,0.07393225]
[1722459378987,0.01,64662.0,64654.0,0.07393225]
[1722459379194,0.0015542,64661.0,64655.0,0.14955172]
[1722459379399,0.0015542,64661.0,64655.0,0.14455172]
[1722459379609,0.01,64662.0,64655.0,0.14455172]
[1722459379812,0.07476412,64664.0,64655.0,0.14455172]
[1722459379813,0.01,64660.0,64655.0,0.14455172]
[1722459380016,0.164664,64656.0,64655.0,0.14455172]
[1722459380220,0.01122706,64656.0,64655.0,0.14455172]
[1722459380423,0.01,64656.0,64655.0,0.14755172]
[1722459380634,0.0015542,64656.0,64655.0,0.14455172]
[1722459380849,0.0015542,64656.0,64655.0,0.44395172]
[1722459381054,0.01,64665.0,64655.0,0.44395172]
[1722459381260,0.002,64671.0,64655.0,0.44395172]
[1722459381261,0.01,64664.0,64656.0,0.00309254]
[1722459381463,0.0015542,64663.0,64657.0,0.14955172]
[1722459381667,0.02580803,64663.0,64658.0,0.00309262]
[1722459381846,0.02580803,64663.0,64659.0,0.21335172]
[1722459382092,0.01,64660.0,64659.0,0.14955172]
[1722459382877,0.08476412,64662.0,64659.0,0.14955172]
[1722459383113,0.01,64660.0,64659.0,0.14955172]
[1722459383947,0.309279,64667.0,64659.0,0.14955172]
[1722459383948,0.01,64661.0,64659.0,0.15355172]
[1722459384157,0.01,64664.0,64659.0,0.15355172]
[1722459384421,0.01,64664.0,64660.0,0.00309271]
[1722459384611,0.01,64668.0,64661.0,0.14955172]
[1722459384815,0.01,64666.0,64662.0,0.00309263]
[1722459385049,0.01,64664.0,64663.0,0.14955172]
[1722459385486,0.011,64664.0,64663.0,0.14955172]
[1722459385697,0.165645,64664.0,64663.0,0.14955172]
[1722459385872,0.164645,64664.0,64663.0,0.14955172]
[1722459386116,0.18889817,64664.0,64663.0,0.14955172]
[1722459386723,0.18989817,64664.0,64663.0,0.14955172]
[1722459387128,0.03525317,64664.0,64663.0,0.14955172]
[1722459387348,0.02525317,64664.0,64663.0,0.14955172]
[1722459388215,0.03725317,64664.0,64663.0,0.14955172]
[1722459388629,0.02725317,64664.0,64663.0,0.15055172]
[1722459388845,0.02425317,64664.0,64663.0,0.14955172]
[1722459389264,0.02425317,64664.0,64663.0,0.76039102]
[1722459389469,0.02425317,64664.0,64663.0,1.37498102]
[1722459389687,0.0002,64679.0,64672.0,0.154624]
[1722459389919,0.0002,64679.0,64677.0,0.2206]
[1722459390159,0.0002,64679.0,64678.0,0.25264318]
[1722459390833,0.0042,64679.0,64678.0,0.25264318]
[1722459391472,0.0002,64679.0,64678.0,0.25264318]
[1722459391675,0.0012,64679.0,64678.0,0.25464318]
[1722459391803,0.0022,64679.0,64678.0,0.25464318]
[1722459392019,0.0012,64679.0,64678.0,0.25155172]
[1722459392438,0.0022,64679.0,64678.0,0.26055172]
[1722459392636,0.0022,64679.0,64678.0,0.25155172]
[1722459393076,0.0022,64679.0,64678.0,0.25955172]
[1722459393261,0.0022,64679.0,64678.0,0.27255172]
[1722459393262,0.0002,64679.0,64678.0,0.27255172]
[1722459393471,0.0012,64679.0,64678.0,0.28379371]
[1722459394026,0.0002,64679.0,64678.0,0.28179371]
[1722459394239,0.0002,64679.0,64678.0,0.28379371]
[1722459394240,0.0012,64679.0,64678.0,0.28379371]
[1722459394651,0.0012,64679.0,64678.0,0.96332114]
[1722459394857,0.0012,64679.0,64678.0,1.27254514]
[1722459395098,0.0012,64679.0,64678.0,0.48639371]
[1722459395318,0.02444179,64679.0,64678.0,0.47739371]
[1722459395548,0.0002,64679.0,64678.0,0.48739371]
[1722459395746,0.0002,64679.0,64678.0,1.26045371]
[1722459395955,0.0012,64679.0,64678.0,1.27345371]
[1722459396579,0.00091301,64686.0,64685.0,0.583785]
[1722459396795,0.00091301,64686.0,64685.0,0.82854672]
[1722459397024,0.00091301,64686.0,64685.0,0.81854672]
[1722459397264,0.00091301,64686.0,64685.0,0.44335172]
[1722459397960,0.00091301,64686.0,64685.0,0.92613672]
[1722459398201,0.00191301,64686.0,64685.0,1.14673672]
[1722459398424,0.00091301,64686.0,64685.0,0.82854672]
[1722459398902,0.00091301,64686.0,64685.0,0.83054672]
[1722459399109,0.02515364,64686.0,64685.0,0.46935172]
[1722459399359,0.02515364,64686.0,64685.0,0.45535172]
[1722459399593,0.02515364,64686.0,64685.0,0.63315689]
[1722459399825,0.02515364,64686.0,64685.0,0.62915689]
[1722459400079,0.00091301,64686.0,64685.0,0.68516189]
[1722459400326,0.00091301,64686.0,64685.0,0.46456189]
[1722459400804,0.00091301,64686.0,64685.0,0.45256189]
[1722459401033,0.00191301,64686.0,64685.0,0.46456189]
[1722459401251,0.00191301,64686.0,64685.0,0.47856189]
[1722459401398,0.00191301,64686.0,64685.0,0.46456189]
[1722459401598,0.00091301,64686.0,64685.0,0.45656189]
[1722459401808,0.00191301,64686.0,64685.0,0.46856189]
[1722459402014,0.00191301,64686.0,64685.0,0.38476189]
[1722459402387,0.00191301,64686.0,64685.0,0.61536189]
[1722459402589,0.00091301,64686.0,64685.0,0.78095689]
[1722459402743,0.00091301,64686.0,64685.0,1.10014689]
[1722459402952,0.00091301,64686.0,64685.0,1.08614689]
[1722459403376,0.02515326,64686.0,64685.0,0.61236189]
[1722459403574,0.00091301,64686.0,64685.0,0.61236189]
[1722459403749,0.00091301,64686.0,64685.0,0.60236189]
[1722459403954,0.00191301,64686.0,64685.0,0.27076189]
[1722459404351,0.00191301,64686.0,64685.0,0.28476189]
[1722459404634,0.00091301,64686.0,64685.0,0.27276189]
[1722459404837,0.00191301,64686.0,64685.0,0.28476189]
[1722459405202,0.00091301,64686.0,64685.0,0.27585323]
[1722459405627,0.00191301,64686.0,64685.0,0.50845323]
[1722459406373,0.00191301,64686.0,64685.0,0.53145323]
[1722459406914,0.02615413,64686.0,64685.0,0.53145323]
[1722459407109,0.00191301,64686.0,64685.0,0.63145323]
[1722459407358,0.00191301,64686.0,64685.0,0.78604823]
[1722459407565,0.00191301,64686.0,64685.0,1.09523823]
[1722459407945,0.00191301,64686.0,64685.0,0.78604823]
[1722459408546,0.00191301,64686.0,64685.0,0.63145323]
[1722459408743,0.00191301,64686.0,64685.0,0.78295689]
[1722459408944,0.00191301,64686.0,64685.0,0.62836189]
[1722459409192,0.00191301,64686.0,64685.0,0.38476189]
[1722459409840,0.00191301,64686.0,64685.0,0.56235689]
[1722459410359,0.00191301,64686.0,64685.0,0.40776189]
[1722459410605,0.02615385,64686.0,64685.0,0.40776189]
[1722459411197,0.02615385,64686.0,64685.0,0.28476189]
[1722459411679,0.00191301,64686.0,64685.0,0.28476189]
[1722459412702,0.14471301,64686.0,64685.0,0.29476189]
[1722459413471,0.08441301,64686.0,64685.0,0.29476189]
[1722459414297,0.09441301,64686.0,64685.0,0.19476189]
[1722459414501,0.08441301,64686.0,64685.0,0.17555172]
[1722459414945,0.14641301,64686.0,64685.0,0.026]
[1722459415159,1.41706517,64686.0,64685.0,0.026]
[1722459415369,1.72825017,64686.0,64685.0,0.026]
[1722459415577,1.85077582,64686.0,64685.0,0.026]
[1722459416036,1.52849725,64686.0,64685.0,0.026]
[1722459416258,1.52849725,64686.0,64685.0,0.01]
[1722459416259,0.15841301,64686.0,64685.0,0.01]
[1722459416466,0.01,64680.0,64676.0,0.2206]
[1722459416682,0.01,64679.0,64677.0,0.14955172]
[1722459416892,0.01,64682.0,64677.0,0.16280081]
[1722459417096,0.01,64682.0,64677.0,0.15970903]
[1722459417856,0.001,64679.0,64677.0,0.16970903]
[1722459418062,0.07476412,64681.0,64677.0,0.15970903]
[1722459418296,0.14541301,64686.0,64678.0,0.00309187]
[1722459418447,0.14541301,64686.0,64682.0,0.2206]
[1722459418448,0.00091301,64686.0,64682.0,0.2206]
[1722459418647,0.00091301,64686.0,64683.0,0.14955172]
[1722459418648,0.02424501,64685.0,64683.0,0.14955172]
[1722459419095,0.00091301,64686.0,64683.0,0.14955172]
[1722459420157,0.08476412,64684.0,64683.0,0.14955172]
[1722459420498,0.00091301,64686.0,64683.0,0.14955172]
[1722459420702,0.00091301,64686.0,64683.0,0.15455172]
[1722459420998,0.00191301,64686.0,64683.0,0.15455172]
[1722459421210,0.01,64684.0,64683.0,0.14955172]
[1722459421418,0.01,64684.0,64683.0,0.15655172]
[1722459421622,0.012,64684.0,64683.0,0.15855172]
[1722459421825,0.012,64684.0,64683.0,0.15655172]
[1722459422036,0.1514,64684.0,64683.0,0.15655172]
[1722459422256,0.175645,64684.0,64683.0,0.15855172]
[1722459422460,0.641437,64684.0,64683.0,0.15655172]
[1722459422871,0.641437,64684.0,64683.0,0.007]
[1722459423469,0.01,64679.0,64676.0,0.00925163]
[1722459423735,0.01,64679.0,64677.0,0.15971216]
[1722459424090,0.01,64678.0,64677.0,0.15971216]
[1722459425029,0.01,64678.0,64677.0,0.16671216]
[1722459425242,0.01,64678.0,64677.0,0.15971216]
[1722459425546,0.012,64678.0,64677.0,0.17371216]
[1722459425744,0.012,64678.0,64677.0,0.16671216]
[1722459426707,0.011,64678.0,64677.0,0.15971216]
[1722459426938,0.001,64678.0,64677.0,0.16171216]
[1722459427139,0.001,64678.0,64677.0,0.66464609]
[1722459427340,0.001,64678.0,64677.0,0.52452616]
[1722459427566,0.001,64678.0,64677.0,0.83375416]
[1722459427777,0.001,64678.0,64677.0,1.14298216]
[1722459427976,0.001,64678.0,64677.0,0.83175416]
[1722459428446,0.00091301,64686.0,64680.0,0.174606]
[1722459428619,0.00091301,64686.0,64682.0,0.14955172]
[1722459428841,0.07476412,64685.0,64682.0,0.14955172]
[1722459429425,0.01,64684.0,64682.0,0.14955172]
[1722459429627,0.08476412,64685.0,64682.0,0.14955172]
[1722459429841,0.07476412,64685.0,64682.0,0.14955172]
[1722459430043,0.01,64684.0,64682.0,0.14955172]
[1722459430199,0.00091301,64686.0,64682.0,0.14955172]
[1722459430399,0.00091301,64686.0,64682.0,0.15897971]
[1722459430626,0.00091301,64686.0,64683.0,0.02609111]
[1722459430838,0.001,64685.0,64684.0,0.14955172]
[1722459431414,0.00091301,64686.0,64684.0,0.14955172]
[1722459431616,0.0636,64685.0,64684.0,0.14955172]
[1722459431818,0.00091301,64686.0,64684.0,0.14955172]
[1722459432025,0.00091301,64686.0,64685.0,1.20292672]
[1722459432400,0.00091301,64686.0,64685.0,1.63093638]
[1722459432611,0.00091301,64686.0,64685.0,1.65393638]
[1722459433040,0.11394801,64706.0,64698.0,0.2757]
[1722459433245,0.11394801,64706.0,64700.0,0.14955172]
[1722459433707,0.11394801,64706.0,64701.0,0.023]
[1722459433957,0.11394801,64706.0,64702.0,0.14955172]
[1722459435039,0.02423652,64706.0,64702.0,0.15655172]
[1722459435457,0.07476412,64704.0,64702.0,0.14955172]
[1722459435664,0.0639,64712.0,64702.0,0.14955172]
[1722459435863,0.01,64710.0,64702.0,0.14955172]
[1722459436065,0.01,64709.0,64702.0,0.14955172]
[1722459436273,0.03136412,64711.0,64702.0,0.15555172]
[1722459436723,0.03136412,64711.0,64702.0,0.15855172]
[1722459437156,0.03136412,64711.0,64702.0,0.15055172]
[1722459437373,0.0639,64712.0,64703.0,0.00309049]
[1722459437585,0.0639,64712.0,64704.0,0.14955172]
[1722459438215,0.0792,64713.0,64704.0,0.14955172]
[1722459438439,0.0792,64713.0,64705.0,0.37879043]
[1722459438704,0.0792,64713.0,64706.0,0.14955172]
[1722459439648,0.02423445,64712.0,64706.0,0.14955172]
[1722459439881,0.02423445,64712.0,64709.0,0.154536]
[1722459440123,0.02423445,64712.0,64711.0,0.2204]
[1722459440378,0.02423445,64712.0,64711.0,0.36995172]
[1722459440621,0.02623445,64712.0,64711.0,0.14955172]